bitfinex/quotes_BTCUSD_20240815
["timestamp","ask_amount","ask_price","bid_price","bid_amount"]
[1723712179660,1.883e-05,58395.0,58394.0,1.72465]
[1723712181857,1.883e-05,58395.0,58394.0,2.30020454]
[1723712182466,1.883e-05,58395.0,58394.0,2.30220454]
[1723712182751,1.883e-05,58395.0,58394.0,1.95870454]
[1723712182991,1.883e-05,58395.0,58394.0,1.29875]
[1723712183484,1.883e-05,58395.0,58394.0,1.96200454]
[1723712183732,1.883e-05,58395.0,58394.0,1.79045]
[1723712184727,0.00101883,58395.0,58394.0,1.79845]
[1723712186209,0.00101883,58395.0,58394.0,1.45595]
[1723712186504,0.00101883,58395.0,58394.0,0.97225]
[1723712186744,0.00101883,58395.0,58394.0,1.31475]
[1723712187709,0.00101883,58395.0,58394.0,1.45995]
[1723712188262,0.00101883,58395.0,58394.0,1.31475]
[1723712188518,0.00101883,58395.0,58394.0,0.016]
[1723712188519,0.19520129,58395.0,58394.0,0.016]
[1723712188784,0.17854765,58395.0,58394.0,0.016]
[1723712189017,0.28111257,58395.0,58394.0,0.016]
[1723712189279,0.30411257,58395.0,58394.0,0.18725]
[1723712189524,0.30311257,58395.0,58394.0,0.17925]
[1723712189724,0.30311257,58395.0,58394.0,0.52175]
[1723712189995,0.30311257,58395.0,58394.0,0.51575]
[1723712190256,0.13721257,58395.0,58394.0,1.30275]
[1723712190496,1.883e-05,58395.0,58394.0,1.30275]
[1723712192665,1.883e-05,58395.0,58394.0,1.64525]
[1723712193208,1.883e-05,58395.0,58394.0,2.07635]
[1723712193410,1.883e-05,58395.0,58394.0,1.73385]
[1723712193791,1.883e-05,58395.0,58394.0,1.30275]
[1723712194197,1.883e-05,58395.0,58394.0,1.30075]
[1723712194395,1.883e-05,58395.0,58394.0,1.30275]
[1723712194733,1.883e-05,58395.0,58394.0,1.64525]
[1723712195109,1.883e-05,58395.0,58394.0,1.64325]
[1723712195534,1.883e-05,58395.0,58394.0,1.64525]
[1723712196193,1.883e-05,58395.0,58394.0,1.64125]
[1723712196638,1.883e-05,58395.0,58394.0,1.64425]
[1723712197640,1.883e-05,58395.0,58394.0,1.64725]
[1723712198848,1.883e-05,58395.0,58394.0,1.37085]
[1723712199048,1.883e-05,58395.0,58394.0,1.30475]
[1723712201938,0.06271883,58395.0,58394.0,1.30475]
[1723712202138,0.14431883,58395.0,58394.0,1.20475]
[1723712202490,0.14431883,58395.0,58394.0,0.86225]
[1723712203016,0.19561553,58395.0,58394.0,0.86225]
[1723712203527,0.19561553,58395.0,58394.0,0.85925]
[1723712203817,0.19561553,58395.0,58394.0,0.85825]
[1723712204036,0.19561553,58395.0,58394.0,0.86025]
[1723712204325,0.14431883,58395.0,58394.0,0.86025]
[1723712204596,0.14431883,58395.0,58394.0,1.20275]
[1723712205103,0.14431883,58395.0,58394.0,0.86025]
[1723712205604,0.14431883,58395.0,58394.0,1.20275]
[1723712205851,0.14431883,58395.0,58394.0,0.86025]
[1723712207345,0.14431883,58395.0,58394.0,1.20275]
[1723712207557,0.14431883,58395.0,58394.0,0.86025]
[1723712208023,1.883e-05,58395.0,58394.0,0.86025]
[1723712208432,1.883e-05,58395.0,58394.0,1.20275]
[1723712209344,1.883e-05,58395.0,58394.0,0.86025]
[1723712213267,0.14071883,58395.0,58394.0,0.51775]
[1723712213465,0.92201553,58395.0,58394.0,0.51775]
[1723712213984,0.94501553,58395.0,58394.0,0.51775]
[1723712214361,0.93051268,58395.0,58394.0,0.51775]
[1723712214533,1.03318229,58395.0,58394.0,0.51775]
[1723712214740,0.93051268,58395.0,58394.0,0.51775]
[1723712214912,1.03318457,58395.0,58394.0,0.51775]
[1723712216214,2.08654597,58395.0,58394.0,0.004]
[1723712216424,2.00913515,58395.0,58394.0,0.004]
[1723712217039,2.6770748,58395.0,58394.0,0.002]
[1723712217250,2.63125093,58395.0,58394.0,0.002]
[1723712217464,0.147,58386.0,58384.0,0.0009053]
[1723712217677,0.09997744,58385.0,58384.0,0.1721843]
[1723712218480,0.023,58385.0,58384.0,0.5147433]
[1723712218886,0.023,58385.0,58384.0,0.5157433]
[1723712219154,0.22997744,58386.0,58385.0,0.513829]
[1723712219362,0.006,58386.0,58385.0,0.513829]
[1723712219563,0.05729641,58386.0,58385.0,0.856382]
[1723712219788,0.006,58386.0,58385.0,0.513829]
[1723712220236,0.07697744,58387.0,58386.0,0.171273]
[1723712220435,0.09997744,58387.0,58386.0,0.171273]
[1723712221001,0.099945,58387.0,58386.0,0.171273]
[1723712221613,0.023,58387.0,58386.0,0.171273]
[1723712221814,0.023,58387.0,58386.0,0.51382]
[1723712222418,0.07428073,58387.0,58386.0,0.51382]
[1723712222636,0.023,58387.0,58386.0,0.51382]
[1723712222838,0.023,58388.0,58387.0,0.513813]
[1723712223207,0.023,58389.0,58388.0,0.171265]
[1723712223432,0.023,58389.0,58388.0,0.513801]
[1723712224401,0.023,58389.0,58388.0,0.514801]
[1723712226708,0.028,58389.0,58388.0,0.515801]
[1723712227414,0.768,58389.0,58388.0,0.515801]
[1723712228057,0.78590787,58389.0,58388.0,0.515801]
[1723712228955,0.78590787,58389.0,58388.0,0.858337]
[1723712229156,0.04590787,58389.0,58388.0,0.515801]
[1723712230227,0.04090787,58389.0,58388.0,0.513801]
[1723712230453,0.04090787,58389.0,58388.0,0.514801]
[1723712230655,0.04090787,58389.0,58388.0,0.515801]
[1723712230656,0.04590787,58389.0,58388.0,0.515801]
[1723712230912,0.02290787,58389.0,58388.0,0.515801]
[1723712231104,0.01790787,58389.0,58388.0,0.936337]
[1723712231312,0.02290787,58389.0,58388.0,0.858337]
[1723712231751,0.02290787,58389.0,58388.0,1.200873]
[1723712231976,0.01790787,58389.0,58388.0,1.199873]
[1723712232179,0.01790787,58389.0,58388.0,1.200873]
[1723712232381,0.02290787,58389.0,58388.0,0.857337]
[1723712232533,0.02290787,58389.0,58388.0,0.858337]
[1723712232737,0.005,58389.0,58388.0,1.276673]
[1723712232946,0.005,58389.0,58388.0,1.376673]
[1723712233546,1.883e-05,58395.0,58394.0,0.85625]
[1723712234872,0.00501883,58395.0,58394.0,1.19875]
[1723712236107,0.00501883,58395.0,58394.0,0.85625]
[1723712237394,0.00501883,58395.0,58394.0,1.19875]
[1723712238002,0.00501883,58395.0,58394.0,1.27605]
[1723712238556,0.00501883,58395.0,58394.0,0.85625]
[1723712238980,0.00501883,58395.0,58394.0,1.19875]
[1723712239301,0.00501883,58395.0,58394.0,1.26435]
[1723712240286,1.883e-05,58395.0,58394.0,1.26435]
[1723712240774,0.00101883,58395.0,58394.0,1.44325]
[1723712240934,0.00101883,58395.0,58394.0,1.78575]
[1723712242071,1.883e-05,58395.0,58394.0,1.78575]
[1723712242376,1.883e-05,58395.0,58394.0,1.78975]
[1723712243364,1.883e-05,58395.0,58394.0,1.79375]
[1723712247997,1.883e-05,58395.0,58394.0,1.91145]
[1723712250190,1.883e-05,58395.0,58394.0,1.90745]
[1723712250585,1.883e-05,58395.0,58394.0,1.91245]
[1723712250996,1.883e-05,58395.0,58394.0,1.92145]
[1723712251919,1.883e-05,58395.0,58394.0,1.31675]
[1723712252122,1.883e-05,58395.0,58394.0,1.43445]
[1723712252123,0.08301883,58395.0,58394.0,1.43445]
[1723712252900,1.883e-05,58395.0,58394.0,1.43445]
[1723712253308,1.883e-05,58395.0,58394.0,1.57595]
[1723712253481,1.883e-05,58395.0,58394.0,1.51385]
[1723712254419,1.883e-05,58395.0,58394.0,1.73865]
[1723712254612,1.883e-05,58395.0,58394.0,1.85635]
[1723712259127,1.883e-05,58395.0,58394.0,1.43445]
[1723712260084,0.14011883,58395.0,58394.0,1.43445]
[1723712261439,0.14011883,58395.0,58394.0,1.77695]
[1723712262573,0.06201883,58395.0,58394.0,1.77695]
[1723712262977,0.06201883,58395.0,58394.0,1.43445]
[1723712263238,1.883e-05,58395.0,58394.0,1.43445]
[1723712263423,1.883e-05,58395.0,58394.0,1.57785]
[1723712263628,1.883e-05,58395.0,58394.0,1.92035]
[1723712277906,1.883e-05,58395.0,58394.0,2.09190454]
[1723712278818,1.883e-05,58395.0,58394.0,2.43440454]
[1723712279219,1.883e-05,58395.0,58394.0,2.09190454]
[1723712279423,1.883e-05,58395.0,58394.0,1.94850454]
[1723712280404,1.883e-05,58395.0,58394.0,1.93950454]
[1723712280906,1.883e-05,58395.0,58394.0,1.94050454]
[1723712281967,1.883e-05,58395.0,58394.0,1.76895]
[1723712282388,1.883e-05,58395.0,58394.0,1.77795]
[1723712283607,1.883e-05,58395.0,58394.0,1.85545]
[1723712283956,1.883e-05,58395.0,58394.0,2.02700454]
[1723712284159,1.883e-05,58395.0,58394.0,2.36950454]
[1723712284364,1.883e-05,58395.0,58394.0,2.08760454]
[1723712284959,1.883e-05,58395.0,58394.0,2.08960454]
[1723712289295,1.883e-05,58395.0,58394.0,2.43210454]
[1723712290225,1.883e-05,58395.0,58394.0,2.43244941]
[1723712290384,1.883e-05,58395.0,58394.0,2.44444941]
[1723712290580,1.883e-05,58395.0,58394.0,2.44244941]
[1723712291069,1.883e-05,58395.0,58394.0,2.44444941]
[1723712291430,1.883e-05,58395.0,58394.0,2.08994941]
[1723712291806,1.883e-05,58395.0,58394.0,2.10594941]
[1723712292051,1.883e-05,58395.0,58394.0,2.44844941]
[1723712292734,1.883e-05,58395.0,58394.0,2.44844914]
[1723712296887,1.883e-05,58395.0,58394.0,2.43644914]
[1723712297918,1.883e-05,58395.0,58394.0,2.42244914]
[1723712298254,1.883e-05,58395.0,58394.0,2.45044914]
[1723712298686,1.883e-05,58395.0,58394.0,2.31234914]
[1723712299838,1.883e-05,58395.0,58394.0,2.31034914]
[1723712300401,1.883e-05,58395.0,58394.0,2.31035139]
[1723712301074,1.883e-05,58395.0,58394.0,2.31235139]
[1723712303107,0.01811472,58403.0,58394.0,2.31235139]
[1723712303108,0.1416,58413.0,58404.0,0.0803]
[1723712303348,0.1416,58413.0,58412.0,0.973687]
[1723712303349,0.0628,58413.0,58412.0,0.973687]
[1723712303546,0.10272819,58429.0,58426.0,0.171156]
[1723712303547,0.05136409,58427.0,58426.0,0.171156]
[1723712303771,0.05136409,58429.0,58428.0,0.513451]
[1723712303946,0.10272819,58435.0,58426.0,0.1177]
[1723712303947,0.05136409,58435.0,58426.0,0.1177]
[1723712304157,0.05136409,58435.0,58417.0,0.08577727]
[1723712304158,0.17155454,58433.0,58432.0,0.1177]
[1723712304360,0.05136409,58438.0,58433.0,0.171136]
[1723712304563,0.05979409,58439.0,58433.0,0.513408]
[1723712304768,0.1433,58433.0,58432.0,0.288838]
[1723712305189,0.1385,58433.0,58430.0,0.342287]
[1723712305327,0.23091309,58439.0,58429.0,0.1177]
[1723712305328,0.1385,58432.0,58429.0,0.1177]
[1723712305528,0.171131,58435.0,58428.0,0.342301]
[1723712305780,0.00843,58439.0,58426.0,0.1177]
[1723712305781,0.17155454,58433.0,58426.0,0.1177]
[1723712305982,0.1385,58426.0,58423.0,0.1177]
[1723712306133,0.1385,58428.0,58423.0,0.171164]
[1723712306336,0.1457,58424.0,58423.0,0.288865]
[1723712306818,0.1457,58424.0,58423.0,0.631195]
[1723712307737,0.131,58424.0,58423.0,0.631195]
[1723712308179,0.131,58424.0,58423.0,0.635195]
[1723712309203,0.131,58424.0,58423.0,0.638195]
[1723712312162,0.131,58424.0,58423.0,0.295865]
[1723712312318,0.131,58424.0,58423.0,0.638195]
[1723712313146,0.131,58424.0,58423.0,0.980525]
[1723712314998,0.131823,58424.0,58423.0,0.980525]
[1723712315216,0.131823,58424.0,58423.0,0.638195]
[1723712315424,0.131823,58424.0,58423.0,0.007]
[1723712315425,1.62986454,58424.0,58423.0,0.007]
[1723712315633,2.10307184,58424.0,58423.0,0.007]
[1723712316285,1.98537184,58424.0,58423.0,0.007]
[1723712316694,1.97218954,58424.0,58423.0,0.007]
[1723712316825,1.97218954,58424.0,58423.0,0.004]
[1723712317024,0.1372,58418.0,58416.0,0.171185]
[1723712317225,0.098,58417.0,58415.0,0.171188]
[1723712317429,0.1424,58416.0,58415.0,0.171188]
[1723712317634,0.1424,58416.0,58391.0,0.342517]
[1723712317635,0.1424,58415.0,58391.0,0.342517]
[1723712317835,0.1424,58415.0,58414.0,0.171191]
[1723712318076,0.1654,58415.0,58414.0,0.171191]
[1723712318501,0.1654,58415.0,58414.0,0.513574]
[1723712319159,0.1654,58415.0,58414.0,0.631274]
[1723712319376,0.1654,58415.0,58414.0,0.973657]
[1723712319578,0.1424,58415.0,58414.0,0.973657]
[1723712320738,0.1424,58415.0,58414.0,0.974657]
[1723712320917,0.1424,58415.0,58414.0,0.174191]
[1723712321320,0.1424,58415.0,58414.0,0.513574]
[1723712321545,0.1424,58415.0,58414.0,0.524574]
[1723712322296,0.1424,58415.0,58414.0,0.519574]
[1723712322513,0.1424,58415.0,58414.0,0.513574]
[1723712322718,0.1424,58415.0,58414.0,0.516574]
[1723712323893,0.1424,58415.0,58414.0,0.858957]
[1723712324292,0.1424,58415.0,58414.0,0.860957]
[1723712324613,0.1424,58415.0,58414.0,0.857957]
[1723712324796,0.1424,58415.0,58414.0,0.855957]
[1723712325196,0.1424,58415.0,58414.0,0.171191]
[1723712325383,0.1424,58415.0,58414.0,0.513574]
[1723712325803,0.9324,58415.0,58414.0,0.513574]
[1723712326834,0.9324,58415.0,58414.0,0.5144782]
[1723712327695,0.1424,58415.0,58414.0,0.5144782]
[1723712329538,0.1424,58415.0,58414.0,0.8568612]
[1723712330093,0.1466,58420.0,58417.0,0.171182]
[1723712330298,0.023,58419.0,58417.0,0.171182]
[1723712331892,0.813,58419.0,58418.0,0.17118]
[1723712332252,0.79,58419.0,58418.0,0.51354]
[1723712333136,0.935,58419.0,58418.0,0.17118]
[1723712333336,0.935,58419.0,58418.0,0.51354]
[1723712335328,0.145,58419.0,58418.0,0.8559]
[1723712335752,0.935,58419.0,58418.0,0.17118]
[1723712335957,0.935,58419.0,58418.0,0.51354]
[1723712336367,0.935,58419.0,58418.0,0.17118]
[1723712336601,0.935,58419.0,58414.0,0.0009042]
[1723712336602,0.96155454,58419.0,58414.0,0.0009042]
[1723712336811,0.314688,58415.0,58414.0,0.0009042]
[1723712337021,0.9335,58415.0,58414.0,0.0009042]
[1723712337213,1.127688,58415.0,58414.0,0.0009042]
[1723712337415,0.9565,58415.0,58414.0,0.0009042]
[1723712339168,0.9580249,58415.0,58414.0,0.0009042]
[1723712339929,0.1450249,58415.0,58414.0,0.8568612]
[1723712340119,0.1450249,58415.0,58414.0,0.5144782]
[1723712340325,0.1450249,58415.0,58414.0,0.8568612]
[1723712340526,0.0670249,58415.0,58414.0,0.8568612]
[1723712342373,1.62214444,58415.0,58414.0,0.0009042]
[1723712342614,1.13157944,58415.0,58414.0,0.0009042]
[1723712343584,0.9600249,58415.0,58414.0,0.1720952]
[1723712345556,0.9600249,58415.0,58414.0,0.0009042]
[1723712345900,0.9600249,58415.0,58414.0,0.1720952]
[1723712346328,0.9600249,58415.0,58414.0,0.0009042]
[1723712346605,0.9600249,58415.0,58414.0,0.1720952]
[1723712346803,0.8470249,58415.0,58414.0,0.8568612]
[1723712347208,0.0015249,58415.0,58414.0,0.8568612]
[1723712354638,0.0015249,58415.0,58414.0,1.1992442]
[1723712356883,0.0015249,58415.0,58414.0,1.5416272]
[1723712357047,0.0015249,58415.0,58414.0,1.6887272]
[1723712357457,0.0015249,58415.0,58414.0,1.6917272]
[1723712357901,0.0015249,58415.0,58414.0,2.30566474]
[1723712358108,0.0015249,58415.0,58414.0,2.30766474]
[1723712358320,9e-07,58415.0,58414.0,2.64704774]
[1723712358529,9e-07,58415.0,58414.0,2.65638086]
[1723712358891,9e-07,58415.0,58414.0,2.66338086]
[1723712359479,0.00823,58434.0,58433.0,0.171136]
[1723712359651,0.00823,58434.0,58433.0,0.659408]
[1723712360014,0.00823,58434.0,58433.0,1.623524]
[1723712360230,0.00823,58434.0,58433.0,1.197952]
[1723712360441,0.00823,58434.0,58433.0,0.171136]
[1723712360655,0.00823,58434.0,58433.0,0.513408]
[1723712361062,0.00823,58434.0,58433.0,0.179136]
[1723712361259,0.03123,58434.0,58433.0,0.171136]
[1723712361413,0.03123,58434.0,58433.0,0.513408]
[1723712362033,0.00823,58434.0,58433.0,0.85568]
[1723712362235,0.00823,58434.0,58433.0,0.85768]
[1723712362481,0.00823,58434.0,58433.0,0.85868]
[1723712363693,0.00823,58434.0,58433.0,0.85668]
[1723712363885,0.28288454,58434.0,58433.0,0.001]
[1723712364557,0.28288454,58434.0,58433.0,0.002]
[1723712364558,0.52011754,58434.0,58433.0,0.002]
[1723712364788,0.0801,58433.0,58430.0,0.171144]
[1723712364936,0.0801,58433.0,58428.0,0.342301]
[1723712364937,0.023,58432.0,58429.0,0.171147]
[1723712365113,0.17155454,58431.0,58425.0,0.342316]
[1723712365331,0.023,58430.0,58429.0,0.171146]
[1723712366937,0.023,58430.0,58428.0,0.171149]
[1723712367163,0.023,58430.0,58429.0,0.171147]
[1723712367575,0.023,58430.0,58429.0,0.172147]
[1723712367958,0.023,58430.0,58429.0,0.171147]
[1723712368598,0.813,58430.0,58429.0,0.513442]
[1723712369611,0.813,58430.0,58429.0,0.171147]
[1723712370078,0.813,58430.0,58429.0,0.172147]
[1723712371410,0.813,58430.0,58429.0,0.514442]
[1723712371613,0.783,58430.0,58429.0,0.514442]
[1723712372243,0.783,58430.0,58429.0,0.001]
[1723712372445,0.783,58430.0,58429.0,0.172147]
[1723712372650,0.0801,58433.0,58432.0,0.171139]
[1723712372858,0.98465454,58433.0,58432.0,0.171139]
[1723712373263,0.98465454,58433.0,58431.0,0.17114]
[1723712373468,0.98465454,58433.0,58432.0,0.171139]
[1723712375358,0.98547654,58433.0,58432.0,0.171139]
[1723712375939,0.90537654,58433.0,58432.0,0.316639]
[1723712376141,0.000822,58433.0,58432.0,1.001195]
[1723712376369,0.000822,58433.0,58432.0,1.343473]
[1723712377182,0.000822,58433.0,58432.0,1.345473]
[1723712378496,0.000822,58433.0,58432.0,1.96030554]
[1723712378902,0.000822,58433.0,58432.0,1.788751]
[1723712379340,0.000822,58433.0,58432.0,1.787751]
[1723712379745,0.000822,58433.0,58432.0,1.795751]
[1723712379946,0.000822,58433.0,58432.0,1.793751]
[1723712380513,0.000822,58433.0,58432.0,1.802751]
[1723712383397,0.000822,58433.0,58432.0,0.872695]
[1723712383635,0.000822,58433.0,58432.0,0.017]
[1723712383636,0.813822,58433.0,58432.0,0.017]
[1723712383870,0.894422,58433.0,58432.0,0.188139]
[1723712384071,0.894422,58433.0,58432.0,0.017]
[1723712384274,0.000822,58433.0,58432.0,1.56935789]
[1723712384446,0.000822,58433.0,58432.0,1.73925027]
[1723712384707,0.000822,58433.0,58432.0,2.08152827]
[1723712384912,0.000822,58433.0,58432.0,2.17352827]
[1723712385113,0.000822,58433.0,58432.0,2.50780627]
[1723712385573,0.000822,58433.0,58432.0,2.67936081]
[1723712385788,0.000822,58433.0,58432.0,2.67836081]
[1723712385936,0.000822,58433.0,58432.0,2.68636081]
[1723712387191,0.000822,58433.0,58432.0,2.68736081]
[1723712387338,0.000822,58433.0,58432.0,2.68636081]
[1723712387541,0.000822,58433.0,58432.0,2.60058354]
[1723712387747,0.000822,58433.0,58432.0,2.60958354]
[1723712388583,1e-06,58434.0,58433.0,2.224768]
[1723712388735,1e-06,58434.0,58433.0,2.63562254]
[1723712388941,1e-06,58439.0,58438.0,1.33715]
[1723712389142,1e-06,58439.0,58438.0,2.93123354]
[1723712389961,1e-06,58439.0,58438.0,2.94055525]
[1723712390165,1e-06,58443.0,58438.0,0.57735454]
[1723712390379,1e-06,58443.0,58442.0,2.54355481]
[1723712390567,1e-06,58443.0,58442.0,2.63527754]
[1723712390784,1e-06,58443.0,58442.0,2.58685854]
[1723712391664,1e-06,58443.0,58442.0,2.29305854]
[1723712391872,1e-06,58443.0,58442.0,2.58685854]
[1723712392047,1e-06,58443.0,58442.0,2.29305854]
[1723712392220,1e-06,58443.0,58442.0,2.58685854]
[1723712392400,1e-06,58443.0,58442.0,2.60085854]
[1723712393057,1e-06,58443.0,58442.0,2.25863954]
[1723712393484,1e-06,58443.0,58442.0,2.27263954]
[1723712393706,1e-06,58443.0,58442.0,1.365066]
[1723712393917,1e-06,58443.0,58442.0,1.519566]
[1723712395672,1e-06,58443.0,58442.0,1.619566]
[1723712398923,0.065501,58443.0,58442.0,1.619566]
[1723712399640,1e-06,58443.0,58442.0,1.619566]
[1723712400050,1e-06,58443.0,58442.0,1.695766]
[1723712401216,1e-06,58443.0,58442.0,1.619566]
[1723712401846,1e-06,58443.0,58442.0,1.591566]
[1723712402070,1e-06,58443.0,58442.0,1.608566]
[1723712402247,1e-06,58443.0,58442.0,1.599566]
[1723712402452,1e-06,58443.0,58442.0,1.738266]
[1723712402612,1e-06,58443.0,58442.0,2.089485]
[1723712402812,1e-06,58443.0,58442.0,1.747266]
[1723712403738,1e-06,58443.0,58442.0,1.739266]
[1723712403917,1e-06,58443.0,58442.0,1.747266]
[1723712408527,1e-06,58443.0,58442.0,2.089485]
[1723712408726,1e-06,58443.0,58442.0,1.747266]
[1723712408933,1e-06,58443.0,58442.0,1.684166]
[1723712409897,1e-06,58443.0,58442.0,1.608566]
[1723712410804,1e-06,58443.0,58442.0,1.92702054]
[1723712411147,1e-06,58443.0,58442.0,2.26923954]
[1723712411688,1e-06,58443.0,58442.0,2.26123954]
[1723712411902,1e-06,58443.0,58442.0,2.25223954]
[1723712412047,1e-06,58443.0,58442.0,2.26223954]
[1723712412247,1e-06,58443.0,58442.0,2.27623954]
[1723712412449,1e-06,58443.0,58442.0,2.26223954]
[1723712413455,1e-06,58443.0,58442.0,2.25223954]
[1723712413654,1e-06,58443.0,58442.0,2.25314484]
[1723712413855,1e-06,58443.0,58442.0,2.26414484]
[1723712414429,1e-06,58443.0,58442.0,2.26614484]
[1723712414660,1e-06,58443.0,58442.0,2.27714484]
[1723712415072,1e-06,58443.0,58442.0,2.25314484]
[1723712415272,1e-06,58443.0,58442.0,2.26339007]
[1723712415421,1e-06,58443.0,58442.0,2.29139007]
[1723712415802,1e-06,58443.0,58442.0,2.63360907]
[1723712416862,1e-06,58443.0,58442.0,2.29139007]
[1723712417909,1e-06,58443.0,58442.0,2.61960907]
[1723712418109,1e-06,58443.0,58442.0,2.60560907]
[1723712418308,1e-06,58443.0,58442.0,2.26339007]
[1723712418529,1e-06,58443.0,58442.0,2.27739007]
[1723712418731,1e-06,58443.0,58442.0,2.29139007]
[1723712419802,1e-06,58443.0,58442.0,2.22519007]
[1723712420356,1e-06,58443.0,58442.0,1.63071653]
[1723712420561,0.138401,58443.0,58442.0,1.63071653]
[1723712420989,1e-06,58443.0,58442.0,1.94367107]
[1723712421545,1e-06,58443.0,58442.0,2.28589007]
[1723712422169,1e-06,58443.0,58442.0,2.27564484]
[1723712423060,1e-06,58443.0,58442.0,1.6204713]
[1723712423820,0.065801,58443.0,58442.0,1.6204713]
[1723712425456,1e-06,58443.0,58442.0,2.13424484]
[1723712425658,1e-06,58443.0,58442.0,1.79202584]
[1723712425830,1e-06,58443.0,58442.0,2.13424484]
[1723712428828,1e-06,58443.0,58442.0,1.79202584]
[1723712429034,1e-06,58443.0,58442.0,1.6204713]
[1723712429671,0.144801,58443.0,58442.0,1.6204713]
[1723712430307,0.065301,58443.0,58442.0,1.6204713]
[1723712431436,1e-06,58443.0,58442.0,2.13424484]
[1723712433601,0.136301,58443.0,58442.0,1.6204713]
[1723712434734,0.136301,58443.0,58442.0,1.3266713]
[1723712434947,1e-06,58443.0,58442.0,1.3266713]
[1723712438289,1e-06,58443.0,58442.0,1.6688903]
[1723712438871,1e-06,58443.0,58442.0,1.3266713]
[1723712439136,0.076801,58443.0,58442.0,1.3266713]
[1723712439254,0.076801,58443.0,58442.0,1.6688903]
[1723712440130,0.076801,58443.0,58442.0,1.3266713]
[1723712440370,0.138701,58443.0,58442.0,1.3266713]
[1723712442357,0.061901,58443.0,58442.0,1.3266713]
[1723712442575,1e-06,58443.0,58442.0,1.3266713]
[1723712442812,1e-06,58443.0,58442.0,1.6688903]
[1723712445254,1e-06,58443.0,58442.0,1.3266713]
[1723712445694,0.075601,58443.0,58442.0,1.3266713]
[1723712445927,0.139501,58443.0,58442.0,1.3266713]
[1723712452527,1.04405554,58443.0,58442.0,0.0289053]
[1723712452757,1.63436078,58443.0,58442.0,0.0289053]
[1723712452964,1.28471931,58443.0,58442.0,0.0289053]
[1723712453387,1.91853667,58443.0,58442.0,0.0149053]
[1723712453633,1.9691769,58443.0,58442.0,0.0149053]
[1723712454011,1.9691769,58443.0,58442.0,0.0169053]
[1723712454229,2.14073144,58443.0,58442.0,0.0169053]
[1723712454716,2.14073144,58443.0,58442.0,0.0029053]
[1723712455093,2.14173144,58443.0,58442.0,0.0009053]
[1723712455317,2.14073144,58443.0,58442.0,0.0009053]
[1723712455518,2.09009121,58443.0,58442.0,0.0009053]
[1723712455721,2.09109121,58443.0,58442.0,0.0009053]
[1723712456098,2.09454863,58443.0,58442.0,0.0009053]
[1723712456483,2.14519821,58443.0,58442.0,0.0009053]
[1723712456890,2.14619821,58443.0,58442.0,0.0009053]
[1723712457934,2.14619821,58443.0,58426.0,0.342312]
[1723712457935,1.10765232,58443.0,58424.0,0.0009042]
[1723712458137,1.10765232,58443.0,58426.0,0.171156]
[1723712458138,0.05122049,58430.0,58426.0,0.171156]
[1723712458316,0.0611,58428.0,58426.0,0.171156]
[1723712458523,0.1406,58426.0,58424.0,0.3432252]
[1723712458772,0.33515454,58425.0,58424.0,0.5143872]
[1723712459191,0.1406,58425.0,58424.0,0.8577122]
[1723712459338,0.05122049,58435.0,58424.0,0.0019042]
[1723712459541,0.07683074,58436.0,58432.0,0.171137]
[1723712459542,0.19455454,58434.0,58432.0,0.171137]
[1723712459767,0.1406,58433.0,58432.0,0.171137]
[1723712459971,0.1406,58432.0,58431.0,0.171141]
[1723712460209,0.33515454,58432.0,58431.0,0.171141]
[1723712460386,0.171143,58431.0,58424.0,0.0009042]
[1723712460601,0.1416,58429.0,58428.0,0.17115]
[1723712460853,0.31315454,58429.0,58428.0,0.17115]
[1723712461084,0.171159,58425.0,58424.0,0.0009042]
[1723712461300,1.40404489,58425.0,58424.0,0.0009042]
[1723712461507,0.44288589,58425.0,58424.0,0.0009042]
[1723712461715,0.46588589,58425.0,58424.0,0.0009042]
[1723712461949,0.1646,58425.0,58424.0,0.8577162]
[1723712462160,0.1646,58425.0,58424.0,0.8567162]
[1723712462875,0.1676,58425.0,58424.0,0.8567162]
[1723712463102,0.1706,58425.0,58424.0,0.8567162]
[1723712463333,0.1706,58425.0,58424.0,1.1990412]
[1723712463767,0.1706,58425.0,58424.0,0.8567162]
[1723712464445,0.1676,58425.0,58424.0,0.8567162]
[1723712464635,0.1646,58425.0,58424.0,0.8567162]
[1723712464869,0.1676,58425.0,58424.0,0.8567162]
[1723712465086,0.007,58425.0,58424.0,1.1990412]
[1723712465302,0.004,58425.0,58424.0,1.2990412]
[1723712465543,0.0628,58429.0,58428.0,1.198053]
[1723712466253,0.064,58438.0,58430.0,0.0625]
[1723712466463,0.064,58438.0,58437.0,0.85562]
[1723712466886,0.1443,58441.0,58440.0,0.855577]
[1723712467096,0.144301,58443.0,58442.0,0.513328]
[1723712467298,0.144301,58443.0,58442.0,0.855547]
[1723712467854,0.31585554,58443.0,58442.0,0.171109]
[1723712468050,0.33885554,58443.0,58442.0,0.513328]
[1723712468825,0.34285554,58443.0,58442.0,0.513328]
[1723712469038,0.34285554,58443.0,58442.0,0.171109]
[1723712469240,0.34285554,58443.0,58442.0,0.513328]
[1723712469445,0.34785554,58443.0,58442.0,0.513328]
[1723712470883,0.153301,58443.0,58442.0,0.855547]
[1723712471083,0.32485554,58443.0,58442.0,0.855547]
[1723712471471,0.32485554,58443.0,58442.0,0.513328]
[1723712471886,0.1443,58442.0,58441.0,0.171111]
[1723712472116,1.12885454,58442.0,58441.0,0.171111]
[1723712472318,1.12885454,58442.0,58441.0,0.513336]
[1723712472737,0.33885454,58442.0,58441.0,0.855561]
[1723712473145,0.34285454,58442.0,58441.0,0.855561]
[1723712473554,0.1513,58442.0,58441.0,1.197786]
[1723712473758,0.007,58442.0,58441.0,1.273286]
[1723712474008,0.007,58442.0,58441.0,1.615511]
[1723712474424,0.007,58442.0,58441.0,1.197786]
[1723712474596,0.003,58442.0,58441.0,1.197786]
[1723712474889,1e-06,58443.0,58442.0,1.197766]
[1723712475150,1e-06,58443.0,58442.0,1.539985]
[1723712476306,1e-06,58443.0,58442.0,1.541985]
[1723712477968,1e-06,58443.0,58442.0,1.542985]
[1723712478961,1e-06,58443.0,58442.0,1.200766]